{"text_format":"3","workbook":"xlsx","n_sheets":2,"sheets":["Sledilnik dejavnosti","Seznam dejavnosti"],"not_rendered":{"charts":1,"defined_names":15},"read":"whole","date_system":"1900"}

{"sheet":"Sledilnik dejavnosti","index":0,"n_rows":23,"n_cols":11,"rows_kept":23,"merged":[[0,0,0,2],[0,3,3,10],[1,0,1,2],[2,0,5,0],[2,1,3,1],[4,1,5,1],[6,0,9,0],[6,1,7,1],[8,1,9,1],[10,0,13,0],[10,1,11,1],[12,1,13,1],[14,0,17,0],[14,1,15,1],[16,1,17,1],[18,0,21,0],[18,1,19,1],[20,1,21,1],[22,0,23,0],[22,1,23,1],[22,2,23,2]]}
["Sledilnik dejavnosti"]
["Sledite 5 najpomembnejšim dejavnostim. Informacije o dejavnosti spodaj zamenjate z dejavnostmi, ki jih najpogosteje izvajate. Če želite spremljati napredek, dodajte vnose zanje v dnevnik dejavnosti."]
["Kolesarjenje",{"$f":"SUMIF(Seznam[Dejavnost],Kategorija1,Seznam[Skupaj])","v":{"v":19.46,"d":"19.5"}}]
[null,null,"Milje"]
[null,{"$f":"SUMIF(Seznam[Dejavnost],Kategorija1,Seznam[Število kalorij])","v":847},"Število kalorij","Datum","Dejavnost","Čas začetka","Trajanje","Skupaj","Enota","Število kalorij","Opomba"]
[{"$nulls":3},"Datum","Kolesarjenje","16:00:00","00:23:00",3.66,{"$f":"IFERROR(VLOOKUP(Seznam[[#This Row],[Dejavnost]],Iskanje_dejavnosti,2,FALSE),\"\")","v":"Milje"},173,"Vročina in vlaga"]
["Plavanje",{"$f":"SUMIF(Seznam[Dejavnost],Kategorija2,Seznam[Skupaj])","v":{"v":1700,"d":"1700.0"}},null,"Datum","Kolesarjenje","14:30:00","00:45:00",7.8,{"$f":"IFERROR(VLOOKUP(Seznam[[#This Row],[Dejavnost]],Iskanje_dejavnosti,2,FALSE),\"\")","v":"Milje"},330,"Hladen popoldan"]
[null,null,"Metri","Datum","Plavanje","10:00:00","00:30:00",1700,{"$f":"IFERROR(VLOOKUP(Seznam[[#This Row],[Dejavnost]],Iskanje_dejavnosti,2,FALSE),\"\")","v":"Metri"},237,"Dober spanec dan poprej"]
[null,{"$f":"SUMIF(Seznam[Dejavnost],Kategorija2,Seznam[Število kalorij])","v":237},"Število kalorij","Datum","Dejavnost 3","13:30:00","00:35:00",3227,{"$f":"IFERROR(VLOOKUP(Seznam[[#This Row],[Dejavnost]],Iskanje_dejavnosti,2,FALSE),\"\")","v":"Koraki"},150]
[{"$nulls":3},"Datum","Dejavnost 4","05:30:00","00:30:00",30,{"$f":"IFERROR(VLOOKUP(Seznam[[#This Row],[Dejavnost]],Iskanje_dejavnosti,2,FALSE),\"\")","v":"Ponovitve"},115]
["Dejavnost 3",{"$f":"SUMIF(Seznam[Dejavnost],Kategorija3,Seznam[Skupaj])","v":{"v":3227,"d":"3227.0"}},null,"Datum","Dejavnost 5","06:00:00","00:45:00",5,{"$f":"IFERROR(VLOOKUP(Seznam[[#This Row],[Dejavnost]],Iskanje_dejavnosti,2,FALSE),\"\")","v":"Milje"},345]
[null,null,"Koraki","Datum","Kolesarjenje","10:00:00","00:40:00",8,{"$f":"IFERROR(VLOOKUP(Seznam[[#This Row],[Dejavnost]],Iskanje_dejavnosti,2,FALSE),\"\")","v":"Milje"},344]
[null,{"$f":"SUMIF(Seznam[Dejavnost],Kategorija3,Seznam[Število kalorij])","v":150},"Število kalorij"]
[]
["Dejavnost 4",{"$f":"SUMIF(Seznam[Dejavnost],Kategorija4,Seznam[Skupaj])","v":{"v":30,"d":"30.0"}}]
[null,null,"Ponovitve"]
[null,{"$f":"SUMIF(Seznam[Dejavnost],Kategorija4,Seznam[Število kalorij])","v":115},"Število kalorij"]
[]
["Dejavnost 5",{"$f":"SUMIF(Seznam[Dejavnost],Kategorija5,Seznam[Skupaj])","v":{"v":5,"d":"5.0"}}]
[null,null,"Milje"]
[null,{"$f":"SUMIF(Seznam[Dejavnost],Kategorija5,Seznam[Število kalorij])","v":345},"Število kalorij"]
[]
["Vsota",{"$f":"SUM(B21,B17,B13,B9,B5)","v":1694},"Število kalorij"]

{"sheet":"Seznam dejavnosti","index":1,"n_rows":8,"n_cols":3,"rows_kept":8,"hidden":true,"merged":[[0,1,0,2],[1,1,1,2]]}
[null,"Seznam dejavnosti"]
[null,"Seznam spodaj je povezan z dejavnostmi po meri, vrednosti pa vnese v spustni seznam v dnevniku dejavnosti. Ta seznam naj ostane skrit."]
[null,"Dejavnost","Enota"]
[null,{"$f":"TRIM(Kategorija1)","v":"Kolesarjenje"},{"$f":"Kategorija1_enota","v":"Milje"}]
[null,{"$f":"TRIM(Kategorija2)","v":"Plavanje"},{"$f":"Kategorija2_enota","v":"Metri"}]
[null,{"$f":"TRIM(Kategorija3)","v":"Dejavnost 3"},{"$f":"Kategorija3_enota","v":"Koraki"}]
[null,{"$f":"TRIM(Kategorija4)","v":"Dejavnost 4"},{"$f":"Kategorija4_enota","v":"Ponovitve"}]
[null,{"$f":"TRIM(Kategorija5)","v":"Dejavnost 5"},{"$f":"Kategorija5_enota","v":"Milje"}]